Cogmind - Beta 16 --- EXPLORER MODE // 2026.01.12 @ 15:36:38 Player: K.K.Y. Result: Destroyed by 6M-M2X(R) with Subdweller Beam Cannon Performance ------------- Evolutions (0) 0 Regions Visited (3) 600 Robots Destroyed (33) 165 Value Destroyed (682) 682 Prototype IDs (0) 0 Alien Tech Used (0) 0 Bonus (-447) -447 TOTAL SCORE: 1000 Bonus ------- Friendly Fire -447 Cogmind --------- Core Integrity 0/250 Matter 300/300 Energy 146/150 System Corruption 1% Temperature Cool (11) Movement Treading (160) Location -10/Subcaves Parts ------- > --- POWER (1) -------- Light Angular Momentum Engine > --- PROPULSION (2) --- Light Treads Light Treads > --- UTILITY (3) ------ Large Storage Unit Structural Scanner Sensor Array > --- WEAPON (2) ------- Particle Cannon Particle Cannon > --- INVENTORY (15) --- Improved Heat Sink Improved Heat Sink Improved Heat Sink Huge Storage Unit Humpback Improved Terrain Scanner Core Shielding Light Armor Plating Beamcaster Beamcaster Particle Cannon Mining Laser Peak State ------------ > --- POWER ------------ Light Nuclear Core > --- PROPULSION ------- Light Treads Light Treads > --- UTILITY ---------- Improved Heat Sink Improved Heat Sink Large Storage Unit > --- WEAPON ----------- Particle Cannon Particle Cannon > --- INVENTORY -------- Light Angular Momentum Engine Improved Heat Sink Huge Storage Unit Humpback Structural Scanner Sensor Array Improved Terrain Scanner Core Shielding Light Armor Plating Beamcaster Beamcaster Particle Cannon Mining Laser [Rating: 19] Favorites ----------- Power Ion Engine Engine Ion Engine Power Core Light Nuclear Core Propulsion Light Treads Treads Light Treads Utility Large Storage Unit Device Improved Heat Sink Storage Large Storage Unit Protection Light Armor Plating Weapon Particle Cannon Energy Gun Small Laser Energy Cannon Particle Cannon Build | -11 -10 -10 -10 ------- Run | Yrd Mat Min Sub Slots Evolved 1 | . 1 . . Power . | . . . . Propulsion . | . . . . Utility 1 | . 1 . . Weapon . | . . . . Parts Attached 24 | 6 8 5 5 Power 5 | 1 1 2 1 Engine 4 | 1 1 1 1 Core 1 | . . 1 . Reactor . | . . . . Propulsion 6 | 2 . 3 1 Treads 6 | 2 . 3 1 Leg . | . . . . Wheel . | . . . . Hover . | . . . . Flight . | . . . . Utility 8 | 1 5 . 2 Device 5 | . 3 . 2 Storage 2 | . 2 . . Processor . | . . . . Hackware . | . . . . Protection 1 | 1 . . . Artifact . | . . . . Weapon 5 | 2 2 . 1 Energy Gun 2 | 2 . . . Energy Cannon 3 | . 2 . 1 Ballistic Gun . | . . . . Ballistic Cannon . | . . . . Launcher . | . . . . Special Weapon . | . . . . Impact Weapon . | . . . . Slashing Weapon . | . . . . Piercing Weapon . | . . . . Special Melee Weapon . | . . . . Unidentified Prototypes . | . . . . Parts Lost 4 | . . 2 2 Power 2 | . . 1 1 Propulsion . | . . . . Utility 1 | . . 1 . Weapon 1 | . . . 1 Highest Loss Streak 2 | . . 2 1 To Critical Strikes . | . . . . Average Backups 9 | 1 6 11 12 Power . | . . 1 . Propulsion . | . . . . Utility 5 | 1 3 6 8 Weapon 3 | . 2 3 3 Tool/Special . | . . . . Unused Backups 9 | . . . 9 Power . | . . . . Propulsion . | . . . . Utility 5 | . . . 5 Weapon 4 | . . . 4 Tool/Special . | . . . . Average Slot Usage (%) 93 | . 92 90 96 Engine 8 | . 12 5 7 Core 2 | . . 4 4 Treads 25 | . 25 25 25 Device 18 | . 20 13 21 Storage 10 | . 7 12 12 Protection 1 | . 2 3 . Energy Gun 3 | . 10 . . Energy Cannon 21 | . 14 25 25 Peak Build Rating 19 | 6 14 16 19 Average Rating 13 | 5 10 13 16 On Entrance 8 | . 6 13 16 Avg Prop Armor Cover (%) . | . . . . Naked Turns . | . . . . Heaviest Build 39 | 10 35 37 39 Greatest Support 40 | 40 40 40 40 Greatest Overweight (x) . | . . . . Average Overweight (x) . | . . . . Largest Inventory Capacity 15 | 5 15 15 15 Average Capacity 13 | 5 10 15 15 Most Carried 15 | 5 10 15 15 Average Carried 9 | 1 6 11 13 Final Capacity 15 | 5 15 15 15 Final Carried 14 | 3 9 14 13 Class Distribution -------------------- 100% | Hacker-Mutant Dominant Class ---------------- Hacker-Mutant | -10/Materials Hacker-Mutant | -10/Mines Hacker-Mutant | -10/Subcaves Resources | -11 -10 -10 -10 ----------- Run | Yrd Mat Min Sub Matter Collected 533 | 260 107 69 97 Remotely . | . . . . Salvage Created 1380 | 159 439 440 342 Parts 73 | 13 28 6 26 Haulers Intercepted 2 | . 2 . . Recyclers Shooed . | . . . . Parts Field Recycled . | . . . . Retrieved Matter . | . . . . Parts Self-Destructed . | . . . . Prevented . | . . . . Parts Restored . | . . . . Kills | -11 -10 -10 -10 ------- Run | Yrd Mat Min Sub Combat Hostiles Destroyed 38 | . 9 22 7 Guns 7 | . 7 . . Cannons 30 | . 2 22 6 Classes Destroyed 13 | 2 6 2 3 Worker 1 | . 1 . . Tunneler 5 | 5 . . . Hauler 2 | . 2 . . Recycler 1 | 1 . . . Mechanic 1 | . 1 . . Watcher 3 | . 3 . . Swarmer 5 | . 4 1 . Grunt 6 | . 5 . 1 Sentry 1 | . . . 1 Demolisher 1 | . . 1 . Artisan 2 | . . . 2 Subdweller 5 | . . . 5 Assembled 20 | . . 20 . Thug 2 | . . 2 . Best Kill Streak 20 | 5 3 20 3 Combat Bots Only 20 | . 2 20 3 Max Kills in Single Turn 2 | 1 2 2 1 Gunslinging . | . . . . Exploded . | . . . . Melee . | . . . . Uniques/NPCs Destroyed . | . . . . Combat | -11 -10 -10 -10 -------- Run | Yrd Mat Min Sub Hostile Shots Fired 117 | . 45 45 27 Missed 30 | . 11 13 6 Hits 87 | . 34 32 21 Melee 2 | . . 2 . Projectile 85 | . 34 30 21 AOE 6 | . . 6 . Critical Strikes 4 | . 1 2 1 Damage Taken 927 | . 246 392 289 Core 251 | . 79 62 110 Absorbed by Shields . | . . . . Ignored by Resistances 569 | . 157 236 176 Core Remaining (%) 100 | 100 . . . Volleys Fired 114 | 10 38 35 31 Largest 2 | 2 2 2 2 Hottest 136 | 80 136 136 136 Shots Fired 228 | 20 76 69 63 Gun 78 | 20 58 . . Cannon 150 | . 18 69 63 Launcher . | . . . . Special . | . . . . Kinetic . | . . . . Thermal 228 | 20 76 69 63 Explosive . | . . . . Electromagnetic . | . . . . Robot Hit Streak 24 | 11 24 13 20 Robot Miss Streak 4 | 1 4 2 1 Penetration Max . | . . . . Secondary Targets . | . . . . Shots Hit Robots 158 | 14 54 49 41 Core Hits 73 | 7 25 27 14 Critical Kills 1 | . . . 1 Critical Parts Destroyed . | . . . . Critical Strikes 1 | . . . 1 Meltdown 1 | . . . 1 Melee Attacks . | . . . . Impact . | . . . . Slashing . | . . . . Piercing . | . . . . Sneak Attacks . | . . . . Combat Hostiles . | . . . . Follow-up Attacks . | . . . . Damage Inflicted 2879 | 163 731 1169 816 Guns 649 | 163 486 . . Cannons 2229 | . 244 1169 816 Explosions . | . . . . Melee . | . . . . Ramming 1 | . 1 . . Kinetic . | . . . . Thermal 2878 | 163 730 1169 816 Explosive . | . . . . Electromagnetic . | . . . . Impact . | . . . . Slashing . | . . . . Piercing . | . . . . Highest Corruption 1 | . 1 1 1 Average Corruption 1 | . 1 1 1 Corruption Purged . | . . . . Corruption Blocked . | . . . . Effects 20 | . 2 9 9 Message Errors 7 | . 2 2 3 Matter Fused 5 | . . 4 1 Heat Flow Errors 2 | . . 1 1 Energy Discharges 2 | . . . 2 Data Loss (minor) 2 | . . 1 1 Misfires 1 | . . . 1 Weapon Failures 1 | . . 1 . Overload Shots . | . . . . Overflow Damage 20 | . 11 3 6 Projectiles 20 | . 11 3 6 Explosions . | . . . . Melee . | . . . . Knockbacks . | . . . . Impact . | . . . . Kinetic . | . . . . Secondary . | . . . . Self-Inflicted Damage . | . . . . Shots . | . . . . Rammed 1 | . 1 . . Targets Rammed 1 | . 1 . . Kicked . | . . . . Crushed . | . . . . Highest Temperature 358 | 137 177 358 93 Average Temperature 81 | 56 63 123 24 Received Heat Transfer 240 | . 159 . 81 Siege Activations . | . . . . Martial Activations . | . . . . Shielding Activations . | . . . . Robots Disrupted . | . . . . Combat Hostiles . | . . . . Robots Corrupted . | . . . . Combat Hostiles . | . . . . Parts Fried . | . . . . Impact Corruptions . | . . . . Robots Melted 1 | . . . 1 Combat Hostiles 1 | . . . 1 Parts Melted 8 | 1 2 . 5 Heat Transferred 5508 | 375 1544 2109 1480 Parts Sabotaged . | . . . . Parts Stolen . | . . . . Parts Stripped . | . . . . Power Chain Reactions . | . . . . Alert | -11 -10 -10 -10 ------- Run | Yrd Mat Min Sub Maximum Alert Level . | . . . . Low Security (%) 100 | 100 100 100 . Level 1 . | . . . . Level 2 . | . . . . Level 3 . | . . . . Level 4 . | . . . . Level 5 . | . . . . High Security . | . . . . Max Security . | . . . . Peak Influence 75 | 20 75 20 . Initial . | . . . . Average 5 | 2 9 . . Influence Increases 369 | 30 259 40 40 Destroy 0b10 Robot/C 260 | . 180 40 40 Destroy 0b10 Robot/NC 65 | 30 35 . . Destroy Leader 40 | . 40 . . Disable Machine 4 | . 4 . . Influence Decreases 369 | 30 259 40 40 Time Decay 359 | 30 259 40 30 Lost Part 10 | . . . 10 Squads Dispatched 1 | . . 1 . Investigation 1 | . . 1 . Extermination . | . . . . Reinforcement . | . . . . Assault . | . . . . Garrison . | . . . . Intercept . | . . . . Searches Triggered . | . . . . Construction Impeded . | . . . . Haulers Reinforced . | . . . . Active Scanning Responses . | . . . . Cargo Convoy Interrupts . | . . . . Stealth | -11 -10 -10 -10 --------- Run | Yrd Mat Min Sub Distress Signals . | . . . . Communications Jammed . | . . . . Distress Signals . | . . . . Times Spotted 63 | . 17 23 23 Peak Tracking Total 11 | . 3 11 6 Tactical Retreats . | . . . . Traps | -11 -10 -10 -10 ------- Run | Yrd Mat Min Sub Traps Triggered 4 | . 4 . . Indirectly . | . . . . Trap Hack Attempts . | . . . . Triggered . | . . . . Disarmed . | . . . . Reprogrammed . | . . . . Reused . | . . . . Traps Extracted . | . . . . Installed . | . . . . Triggered . | . . . . Machines | -11 -10 -10 -10 ---------- Run | Yrd Mat Min Sub Machines Disabled 1 | . 1 . . Max in Single Turn 1 | . 1 . . Machines Repaired . | . . . . Machines Dismantled . | . . . . Machines Sabotaged . | . . . . Overloaded Fab Kills . | . . . . Hacking | -11 -10 -10 -10 --------- Run | Yrd Mat Min Sub Machines Accessed 4 | . 1 2 1 Terminals 3 | . 1 2 . Fabricators . | . . . . Repair Stations . | . . . . Recycling Units . | . . . . Scanalyzers . | . . . . Garrison Access . | . . . . Total Hacks 9 | . 1 4 4 Successful 5 | . 1 . 4 Failed 4 | . . 4 . Catastrophic 1 | . . 1 . Database Lockouts . | . . . . Manual 5 | . 1 4 . Terminals 5 | . 1 4 . Fabricators . | . . . . Repair Stations . | . . . . Recycling Units . | . . . . Scanalyzers . | . . . . Garrison Access . | . . . . Terminal Hacks 4 | . . . 4 Record 4 | . . . 4 Fabricator Hacks . | . . . . Repair Station Hacks . | . . . . Recycling Unit Hacks . | . . . . Scanalyzer . | . . . . Garrison Access Hacks . | . . . . Unauthorized Hacks 1 | . 1 . . Terminals 1 | . 1 . . Botnet 1 | . 1 . . Fabricators . | . . . . Repair Stations . | . . . . Recycling Units . | . . . . Scanalyzers . | . . . . Garrison Access . | . . . . Data Cores Recovered . | . . . . Used . | . . . . Hacking Detections 2 | . . 2 . Full Trace Events 1 | . . 1 . Feedback Events . | . . . . Feedback Blocked . | . . . . Robot Schematics Acquired . | . . . . Robots Built . | . . . . Authchips . | . . . . Time . | . . . . Total Robot Build Rating . | . . . . Part Schematics Acquired . | . . . . Parts Built . | . . . . Authchips . | . . . . Time . | . . . . Total Part Build Rating . | . . . . Part Studies Acquired . | . . . . Parts Repaired . | . . . . Time . | . . . . Parts Recycled . | . . . . Recycled Matter . | . . . . Retrieved Matter . | . . . . Retrieved Components . | . . . . Parts Scanalyzed . | . . . . Part Schematics Acquired . | . . . . Parts Damaged . | . . . . Bothacking | -11 -10 -10 -10 ------------ Run | Yrd Mat Min Sub Used RIF Installer . | . . . . Robots Hacked . | . . . . Non-combat . | . . . . Combat . | . . . . Robot Hacks Applied . | . . . . Relay Couplers Released . | . . . . Fabnet Peak Effective % . | . . . . Robots Rewired . | . . . . Allies Hacked . | . . . . Hacks Repelled . | . . . . Allies | -11 -10 -10 -10 -------- Run | Yrd Mat Min Sub Total Allies . | . . . . Largest Group . | . . . . Highest-Rated Group . | . . . . Highest-Rated Ally . | . . . . Total Orders . | . . . . Ally Attacks . | . . . . Total Damage . | . . . . Kills . | . . . . Allies Corrupted . | . . . . Allies Melted . | . . . . Intel | -11 -10 -10 -10 ------- Run | Yrd Mat Min Sub Active Infowar (turns) 2089 | . 985 147 957 Sensors 957 | . . . 957 Terrain 228 | . 228 . . Structural 2088 | . 985 147 956 Robot Analysis Total . | . . . . Derelict Logs Recovered 1 | . . 1 . Drone Launches . | . . . . Drone Recoveries . | . . . . Exploration | -11 -10 -10 -10 ------------- Run | Yrd Mat Min Sub Turns Passed 3811 | 150 1280 1045 1336 Spaces Moved 2033 | 80 707 532 714 Core 19 | 19 . . . Treads 2014 | 61 707 532 714 Legs . | . . . . Wheels . | . . . . Hover . | . . . . Flight . | . . . . Fastest Speed 50 | 50 160 160 160 Average Speed 158 | 133 160 160 160 Slowest Speed 160 | 160 160 160 160 Overloaded Moves . | . . . . Propulsion Burnouts . | . . . . Robots Hopped . | . . . . Potential Cave-ins . | . . . . Cave-ins Triggered . | . . . . Exploration Rate (%) 64 | 4 97 94 62 Regions Visited 3 Branch Regions 2 Pre-discovered Areas 3 | . . 2 1 Known Exits Taken 3 | 1 1 1 . Unknown Exits Taken . | . . . . Scrap Searched . | . . . . Spaces Dug . | . . . . Terrain Destroyed 1 | . . 1 . Melee . | . . . . Projectile 1 | . . 1 . AOE . | . . . . Terrain Rammed . | . . . . Walls Destroyed . | . . . . Machines Disabled . | . . . . Actions | -11 -10 -10 -10 --------- Run | Yrd Mat Min Sub Total 2383 | 102 778 657 846 Wait 171 | . 5 74 92 Move 2030 | 79 706 531 714 Hop . | . . . . Pick Up 26 | 7 10 7 2 Fast Attach 8 | 2 6 . . Attach 12 | 4 4 1 3 Detach 1 | . 1 . . Swap 11 | . 3 5 3 Drop 9 | . 4 4 1 Fire 114 | 10 38 35 31 Melee . | . . . . Ram . | . . . . Kick . | . . . . Crush 1 | . 1 . . Escape Stasis . | . . . . Rewire . | . . . . Trap . | . . . . Miscellaneous . | . . . . Route ------- -11/Scrapyard -10/Materials (discovered 5 exits: *Mat x3 / *Min / *Sub) -10/Mines (discovered 3 exits: *Mat x2 / *Sub) -10/Subcaves (discovered 3 exits: *Mat x2 / [*Scr]) History --------- Turn | Location | Event 10 | -11/Scrapyard | Identified exit to Materials 10 | -11/Scrapyard | Discovered exit to Materials (range 16) 151 | -11/Scrapyard | Entered Materials 151 | -10/Materials | Evolved 1 slot: Utility x1 304 | -10/Materials | Build established: Hacker-Mutant 465 | -10/Materials | Identified exit to Subcaves 465 | -10/Materials | Discovered exit to Subcaves (range 13) 503 | -10/Materials | Identified exit to Materials 503 | -10/Materials | Discovered exit to Materials (range 16) 903 | -10/Materials | Discovered exit to Materials (range 6) 1163 | -10/Materials | Discovered exit to Materials (range 15) 1315 | -10/Materials | Identified exit to Mines 1315 | -10/Materials | Discovered exit to Mines (range 8) 1431 | -10/Materials | Entered Mines 1536 | -10/Mines | Assembled infested the area 1541 | -10/Mines | Assisted by a Guerilla fighting off Assembled 1659 | -10/Mines | Destroyed 20 combat bots 1889 | -10/Mines | Core integrity fell below 50% 1944 | -10/Mines | Joined a pair of Derelicts in attacking an 0b10 outpost 2275 | -10/Mines | Learned location of Zion (-6) 2363 | -10/Mines | Discovered exit to Materials (range 6) 2387 | -10/Mines | Discovered exit to Materials (range 12) 2388 | -10/Mines | Learned location of Storage (-9) 2462 | -10/Mines | Discovered exit to Subcaves (range 4) 2476 | -10/Mines | Entered Subcaves 2477 | -10/Subcaves | Approached by a straggling Scientist 2638 | -10/Subcaves | Ambushed by swarm of Subdwellers 2786 | -10/Subcaves | Identified exit to Materials 2786 | -10/Subcaves | Discovered exit to Materials (range 12) 2816 | -10/Subcaves | A Subdweller sparked back to life 2816 | -10/Subcaves | A Subdweller sparked back to life 2816 | -10/Subcaves | A Subdweller sparked back to life 2916 | -10/Subcaves | Core integrity fell below 20% 2986 | -10/Subcaves | Ambushed by angry Subdweller bent on revenge 3348 | -10/Subcaves | Shifting Twisted Machinery released Sub. Machine Gun 3382 | -10/Subcaves | Visited Clippyterm 3387 | -10/Subcaves | Learned Factory trap positions 3387 | -10/Subcaves | Learned 40 Factory zone layouts 3663 | -10/Subcaves | Met a Zionite searching for "candidates" 3750 | -10/Subcaves | Discovered exit to Materials (range 5) 3812 | -10/Subcaves | Ambushed by Subdweller buried in earth 3812 | -10/Subcaves | Destroyed by 6M-M2X(R) with Subdweller Beam Cannon Last Messages --------------- 03525_ GV-0F6(u) destroyed. 03577_ EK-6ZE(R): "LEAVESUB!" 03579_ HV Slug penetrates EK-6ZE(R). 03582_ HV Slug penetrates Twisted Machinery. 03582_ EK-6ZE(R) suffers critical hit (Burn). 03582_ EK-6ZE(R) destroyed. 03644_ NF-45G(z): "She is not going to be happy we haven't found any suitable candidates yet." 03663_ NF-45G(z): "Hey you! It's really dangerous down here, I feel that you could die at any moment. For your health and safety might I suggest a trip to Zion?" World map confirmed: -6/Zion. 03714_ 44-MLD(R) knocked back. 03717_ HV Slug penetrates 44-MLD(R). 03717_ 44-MLD(R) suffers critical hit (Destroy). 03717_ 44-MLD(R) destroyed. 03750_ EXIT=FOUND: MATERIALS 03812_ 6M-M2X(R) comes tumbling out of the earth. Map ----- +----------------------------------------------------+ | ????????#?#??# #?????????????????????????????? | | ?????????????# ! ??????????????????????????? | | ?????????????## ??????????????????????? | | ??????????????## ####### #????????????????????? | | ???????????????# ##????????????????????????????? | | ??????????????? #?????????????????????????????? | | ??????????????? ###?????????????????????????????? | | ?????????????? #???????????????????????????????? | | ?????????????? ????????????????????????????????? | | ?????????????? ????????????????????????????????? | | ?????????????# ????????????????????????????????? | | ?????????????## ????????????????????????????????? | | ??????????????# ????????????????????????????????? | | ??????????????## ????????????????????????????????? | | ????????????????#????????????????????????????????? | | ?????????????????????????????????????????????????? | | ?????????????????????????????????????????????????? | | ?????????????????????????????????????????????????? | | ?????????????????????????????????????????????????? | | ?????????????????????????????????????????????????? | | ????????????????????????? # #????????????????????? | | ????????????????????????? ## ????????????????????? | | ???????????????????????### # ????????????????????? | | ??????????????????????#### ##????????????????????? | | ?????????????????????# ## R##????????????????????? | | ?????????????????????### @###????????????????????? | | ?????????????????????## # ##?????????????????????? | | ?????????????????????### h## #???????????????????? | | ??????????????????????### # ##???????????????????? | | #####?????????????????### # ##???????????????????? | | ######################?## # ##???????????????????? | | #"###################### ## ???????????????????? | | ""###"### %#### %#####g###????????????????????? | | ## "###" ## ## ##"### ####????????????????????? | | ## ##" ### #### ####?????????????????????? | | # " # ### ##### %# ####??????????????????????? | | """ #### ## ### ## #???????????????????????? | | " < ###### ########????????????????????????? | | # ######### #######?????????????????????????? | | #### ######??######??????????????????????????????? | | #########?????#####??????????????????????????????? | | ??#####??????????????????????????????????????????? | | ?????????????????????????????????????????????????? | | ?????????????????????????????????????????????????? | | ?????????????????????????????????????????????????? | | ?????????????????????????????????????????????????? | | ?????????????????????????????????????????????????? | | ?????????????????????????????????????????????????? | | ?????????????????????????????????????????????????? | | ?????????????????????????????????????????????????? | +----------------------------------------------------+ Best States ------------- Heat Dissipation 53 Energy Generation 18 Energy Capacity 250 Matter Stores 300 Matter Capacity 300 Sight Range 16 Robot Scan Range 14 Terrain Scan Range 16 Terrain Scan Density 10 Armor Coverage 150 Resistance: KI 35 Resistance: TH 35 Resistance: EX 35 Resistance: EM 35 Resistance: I 35 Resistance: S 35 Resistance: P 35 Evasion (%) 50 Recoil Reduction 2 Offensive Hacking 20 Item Schematics ----------------- None Robot Schematics ------------------ None Fabricated ------------ Nothing Repaired ---------- Nothing Studied --------- None Alien Tech Used ----------------- None Achievements -------------- Killing Spree Challenges ------------ None Game ------ Seed ShadeStructuralFlail Manual? 0 Play Time 00:19:27 Cumulative 273.8 hours Start 2026.01.12 @ 15:20:10 End 2026.01.12 @ 15:36:38 Sessions 1 Manual Loads 0 Difficulty Explorer Special Mode None Game No. 428 Rogue 0 Adventurer 0 Explorer 428 Win Type - Total 0 Types 0/0/0/0/0/0/0/0/0/0 Lore% 73 Gallery% 69 Achievement% 55 Wizard Run 0 Options --------- Layout 1 ASCII 0 Keyboard 0 Movement Mouse Keybinds 1 Fullscreen 1 Font 24/Smallcaps Map View 50x35 Zoom Use 0% Tactical HUD 1 Map Filters NONE Filters NONE Steam 1 RUN: 307ea2cb-9fee-414a-8a62-245b1cec3c74